[Event "Titled Tuesday Blitz January 10 Early 2023"]
[White "Vaglio Munoz, Jaime"]
[Black "Barria Zuniga, Daniel"]
[WhiteFideId "6500145"]
[BlackFideId "3400816"]
[WhiteElo "2174"]
[BlackElo "2341"]
[Result "0-1"]
[Round "03"]
[TimeControl "180+2"]
[Date "2023.01.10"]
[WhiteClock "0:01:48"]
[BlackClock "0:01:16"]

1. d4 {[%clk 0:03:00]}  Nf6 {[%clk 0:02:53]} 2. c4 {[%clk 0:03:00]}  e6 {[%clk 0:02:54]} 3. g4 {[%clk 0:03:00]}  Nxg4 {[%clk 0:02:52]} 4. e4 {[%clk 0:03:00]}  Qh4 {[%clk 0:02:41]} 5. Nh3 {[%clk 0:02:59]}  h6 {[%clk 0:02:31]} 6. Qf3 {[%clk 0:02:57]}  Nc6 {[%clk 0:02:30]} 7. Be3 {[%clk 0:02:52]}  e5 {[%clk 0:02:26]} 8. d5 {[%clk 0:02:50]}  Nd4 {[%clk 0:02:27]} 9. Bxd4 {[%clk 0:02:50]}  exd4 {[%clk 0:02:28]} 10. Nd2 {[%clk 0:02:45]}  Bb4 {[%clk 0:02:25]} 11. O-O-O {[%clk 0:02:43]}  c5 {[%clk 0:02:16]} 12. a3 {[%clk 0:02:40]}  Bxd2+ {[%clk 0:02:14]} 13. Rxd2 {[%clk 0:02:41]}  d6 {[%clk 0:02:12]} 14. Rg1 {[%clk 0:02:32]}  Ne5 {[%clk 0:01:53]} 15. Qb3 {[%clk 0:02:29]}  g5 {[%clk 0:01:46]} 16. Rg3 {[%clk 0:02:28]}  Qxe4 {[%clk 0:01:41]} 17. Bg2 {[%clk 0:02:21]}  Qe1+ {[%clk 0:01:32]} 18. Rd1 {[%clk 0:02:02]}  Qe2 {[%clk 0:01:31]} 19. Qb5+ {[%clk 0:02:00]}  Bd7 {[%clk 0:01:29]} 20. Qxb7 {[%clk 0:01:59]}  Ke7 {[%clk 0:01:29]} 21. Qa6 {[%clk 0:01:57]}  Rab8 {[%clk 0:01:25]} 22. b3 {[%clk 0:01:54]}  d3 {[%clk 0:01:19]} 23. Rd2 {[%clk 0:01:48]}  Qe1+ {[%clk 0:01:19]} 24. Rd1 {[%clk 0:01:48]}  Qc3+ {[%clk 0:01:17]} 25. Kb1 {[%clk 0:01:48]}  Rxb3+ {[%clk 0:01:16]} 0-1


[Site "https://www.chess.com"]

[Event "Titled Tuesday Blitz January 10 Early 2023"]
[White "Melnichuk, Mikhail"]
[Black "Real_taiatai"]
[WhiteFideId "14117533"]
[WhiteElo "2327"]
[BlackElo "2318"]
[Result "1-0"]
[Round "03"]
[TimeControl "180+2"]
[Date "2023.01.10"]
[WhiteClock "0:02:05"]
[BlackClock "0:01:32"]

1. Nf3 {[%clk 0:03:00]}  Nf6 {[%clk 0:02:58]} 2. d4 {[%clk 0:03:00]}  g6 {[%clk 0:02:57]} 3. c4 {[%clk 0:03:00]}  Bg7 {[%clk 0:02:58]} 4. Nc3 {[%clk 0:03:00]}  O-O {[%clk 0:02:59]} 5. e4 {[%clk 0:03:00]}  d6 {[%clk 0:02:58]} 6. Be2 {[%clk 0:03:01]}  Nbd7 {[%clk 0:02:58]} 7. O-O {[%clk 0:03:01]}  e5 {[%clk 0:02:59]} 8. Qc2 {[%clk 0:03:01]}  Re8 {[%clk 0:02:55]} 9. Rd1 {[%clk 0:03:01]}  Qe7 {[%clk 0:02:46]} 10. d5 {[%clk 0:02:56]}  c5 {[%clk 0:02:45]} 11. Ne1 {[%clk 0:02:51]}  Kh8 {[%clk 0:02:34]} 12. Nd3 {[%clk 0:02:50]}  Ng8 {[%clk 0:02:31]} 13. f4 {[%clk 0:02:46]}  exf4 {[%clk 0:02:30]} 14. Bxf4 {[%clk 0:02:45]}  a6 {[%clk 0:02:14]} 15. Rf1 {[%clk 0:02:36]}  Bd4+ {[%clk 0:01:59]} 16. Kh1 {[%clk 0:02:35]}  Ne5 {[%clk 0:02:00]} 17. Nxe5 {[%clk 0:02:31]}  Bxe5 {[%clk 0:01:56]} 18. Rae1 {[%clk 0:02:24]}  Nf6 {[%clk 0:01:52]} 19. Bg5 {[%clk 0:02:17]}  Kg7 {[%clk 0:01:50]} 20. Qd2 {[%clk 0:02:16]}  Bd7 {[%clk 0:01:43]} 21. a4 {[%clk 0:02:12]}  Rh8 {[%clk 0:01:30]} 22. Bh6+ {[%clk 0:02:09]}  Kg8 {[%clk 0:01:31]} 23. Bg5 {[%clk 0:02:06]}  Ng4 {[%clk 0:01:32]} 24. Bxe7 {[%clk 0:02:05]} 1-0


[Site "https://www.chess.com"]

[Event "Titled Tuesday Blitz January 10 Early 2023"]
[White "Borgaonkar Akshay"]
[Black "Rosenberg, Evan S"]
[WhiteFideId "25639110"]
[BlackFideId "2019299"]
[WhiteElo "1991"]
[BlackElo "1956"]
[Result "1-0"]
[Round "03"]
[TimeControl "180+2"]
[Date "2023.01.10"]
[WhiteClock "0:02:49"]
[BlackClock "0:00:07"]

1. Nf3 {[%clk 0:03:00]}  d5 {[%clk 0:02:59]} 2. b3 {[%clk 0:02:59]}  c5 {[%clk 0:02:49]} 3. Bb2 {[%clk 0:02:59]}  Nc6 {[%clk 0:02:44]} 4. e3 {[%clk 0:02:58]}  f6 {[%clk 0:02:43]} 5. d4 {[%clk 0:02:58]}  cxd4 {[%clk 0:02:23]} 6. exd4 {[%clk 0:02:59]}  Bg4 {[%clk 0:02:18]} 7. Nbd2 {[%clk 0:02:58]}  e5 {[%clk 0:02:12]} 8. dxe5 {[%clk 0:02:59]}  fxe5 {[%clk 0:02:13]} 9. h3 {[%clk 0:02:59]}  Bxf3 {[%clk 0:02:11]} 10. Nxf3 {[%clk 0:03:00]}  e4 {[%clk 0:02:10]} 11. Nd4 {[%clk 0:03:00]}  Nf6 {[%clk 0:01:45]} 12. Bb5 {[%clk 0:02:58]}  Bb4+ {[%clk 0:01:35]} 13. c3 {[%clk 0:02:57]}  Bc5 {[%clk 0:01:27]} 14. Nxc6 {[%clk 0:02:58]}  bxc6 {[%clk 0:01:27]} 15. Bxc6+ {[%clk 0:02:58]}  Ke7 {[%clk 0:01:17]} 16. Bxa8 {[%clk 0:02:58]}  Qxa8 {[%clk 0:01:18]} 17. O-O {[%clk 0:02:59]}  Rd8 {[%clk 0:01:09]} 18. a4 {[%clk 0:02:59]}  Kf7 {[%clk 0:01:08]} 19. Ba3 {[%clk 0:02:59]}  Bxa3 {[%clk 0:01:00]} 20. Rxa3 {[%clk 0:03:00]}  a5 {[%clk 0:00:51]} 21. Qd4 {[%clk 0:02:59]}  Kg8 {[%clk 0:00:46]} 22. b4 {[%clk 0:02:59]}  Rc8 {[%clk 0:00:43]} 23. b5 {[%clk 0:02:59]}  Rc4 {[%clk 0:00:43]} 24. Qe5 {[%clk 0:02:59]}  Qf8 {[%clk 0:00:38]} 25. b6 {[%clk 0:02:49]}  Qxa3 {[%clk 0:00:37]} 26. b7 {[%clk 0:02:48]}  h6 {[%clk 0:00:08]} 27. b8=Q+ {[%clk 0:02:47]}  Kh7 {[%clk 0:00:06]} 28. Qf5+ {[%clk 0:02:48]}  g6 {[%clk 0:00:07]} 29. Qxf6 {[%clk 0:02:48]}  Qf8 {[%clk 0:00:07]} 30. Qbxf8 {[%clk 0:02:48]}  Rc8 {[%clk 0:00:08]} 31. Qxc8 {[%clk 0:02:48]}  h5 {[%clk 0:00:08]} 32. Qc5 {[%clk 0:02:47]}  h4 {[%clk 0:00:08]} 33. Qxh4+ {[%clk 0:02:47]}  Kg7 {[%clk 0:00:08]} 34. Qxd5 {[%clk 0:02:48]}  g5 {[%clk 0:00:08]} 35. Qhxg5+ {[%clk 0:02:47]}  Kh8 {[%clk 0:00:07]} 36. Qde5+ {[%clk 0:02:46]}  Kh7 {[%clk 0:00:07]} 37. Qxe4+ {[%clk 0:02:47]}  Kh8 {[%clk 0:00:07]} 38. Qed5 {[%clk 0:02:48]}  Kh7 {[%clk 0:00:07]} 39. Qxa5 {[%clk 0:02:49]} 1-0


[Site "https://www.chess.com"]

[Event "Titled Tuesday Blitz January 10 Early 2023"]
[White "Pinero Rodriguez, Carlos Jose"]
[Black "Yaniuk, Volodymyr"]
[WhiteFideId "3901726"]
[BlackFideId "14133083"]
[WhiteElo "2246"]
[BlackElo "2223"]
[Result "1/2-1/2"]
[Round "03"]
[TimeControl "180+2"]
[Date "2023.01.10"]
[WhiteClock "0:00:03"]
[BlackClock "0:00:06"]

1. d4 {[%clk 0:03:00]}  d5 {[%clk 0:02:59]} 2. c4 {[%clk 0:03:00]}  e6 {[%clk 0:02:58]} 3. cxd5 {[%clk 0:03:01]}  exd5 {[%clk 0:02:57]} 4. Nc3 {[%clk 0:03:01]}  Nf6 {[%clk 0:02:56]} 5. Bg5 {[%clk 0:03:02]}  c6 {[%clk 0:02:56]} 6. e3 {[%clk 0:03:02]}  Be7 {[%clk 0:02:55]} 7. Bd3 {[%clk 0:03:02]}  Nbd7 {[%clk 0:02:55]} 8. Qc2 {[%clk 0:03:01]}  h6 {[%clk 0:02:55]} 9. Bh4 {[%clk 0:03:01]}  Nh5 {[%clk 0:02:54]} 10. Bg3 {[%clk 0:03:01]}  Nxg3 {[%clk 0:02:54]} 11. hxg3 {[%clk 0:03:02]}  O-O {[%clk 0:02:52]} 12. Nf3 {[%clk 0:03:00]}  Re8 {[%clk 0:02:51]} 13. O-O {[%clk 0:03:00]}  Bd6 {[%clk 0:02:47]} 14. Rab1 {[%clk 0:02:59]}  a5 {[%clk 0:02:44]} 15. a3 {[%clk 0:02:59]}  Nf6 {[%clk 0:02:25]} 16. b4 {[%clk 0:02:58]}  axb4 {[%clk 0:02:24]} 17. axb4 {[%clk 0:02:59]}  b5 {[%clk 0:02:00]} 18. e4 {[%clk 0:02:55]}  dxe4 {[%clk 0:01:54]} 19. Nxe4 {[%clk 0:02:56]}  Ra6 {[%clk 0:01:28]} 20. Nc5 {[%clk 0:02:28]}  Ra7 {[%clk 0:01:22]} 21. Ra1 {[%clk 0:02:13]}  Ree7 {[%clk 0:01:11]} 22. Qb2 {[%clk 0:01:56]}  Nd5 {[%clk 0:01:06]} 23. Nd2 {[%clk 0:01:40]}  Rec7 {[%clk 0:01:00]} 24. Nde4 {[%clk 0:01:37]}  Bf8 {[%clk 0:01:00]} 25. Nc3 {[%clk 0:01:30]}  Nf6 {[%clk 0:00:50]} 26. Rad1 {[%clk 0:01:19]}  Ng4 {[%clk 0:00:48]} 27. Rfe1 {[%clk 0:01:13]}  Re7 {[%clk 0:00:43]} 28. Be4 {[%clk 0:01:08]}  Nf6 {[%clk 0:00:23]} 29. Bxc6 {[%clk 0:01:04]}  Rxe1+ {[%clk 0:00:23]} 30. Rxe1 {[%clk 0:01:05]}  Qxd4 {[%clk 0:00:23]} 31. Rd1 {[%clk 0:00:55]}  Qe5 {[%clk 0:00:20]} 32. Bxb5 {[%clk 0:00:49]}  Bg4 {[%clk 0:00:19]} 33. Rb1 {[%clk 0:00:36]}  Bxc5 {[%clk 0:00:18]} 34. bxc5 {[%clk 0:00:36]}  Qxc5 {[%clk 0:00:19]} 35. Be2 {[%clk 0:00:33]}  Ra8 {[%clk 0:00:17]} 36. Bxg4 {[%clk 0:00:32]}  Nxg4 {[%clk 0:00:18]} 37. Ne4 {[%clk 0:00:31]}  Qf5 {[%clk 0:00:17]} 38. f3 {[%clk 0:00:29]}  Ne5 {[%clk 0:00:16]} 39. Qb7 {[%clk 0:00:24]}  Ra2 {[%clk 0:00:15]} 40. Rb2 {[%clk 0:00:23]}  Ra1+ {[%clk 0:00:15]} 41. Rb1 {[%clk 0:00:23]}  Ra2 {[%clk 0:00:15]} 42. Rb2 {[%clk 0:00:23]}  Ra1+ {[%clk 0:00:14]} 43. Rb1 {[%clk 0:00:24]}  Rxb1+ {[%clk 0:00:15]} 44. Qxb1 {[%clk 0:00:24]}  Ng6 {[%clk 0:00:14]} 45. Qb8+ {[%clk 0:00:23]}  Kh7 {[%clk 0:00:14]} 46. Qc7 {[%clk 0:00:19]}  Ne5 {[%clk 0:00:12]} 47. Qc5 {[%clk 0:00:18]}  g6 {[%clk 0:00:09]} 48. g4 {[%clk 0:00:17]}  Qe6 {[%clk 0:00:06]} 49. Qd6 {[%clk 0:00:16]}  Kg7 {[%clk 0:00:05]} 50. Qxe6 {[%clk 0:00:16]}  fxe6 {[%clk 0:00:06]} 51. Kf2 {[%clk 0:00:16]}  Nf7 {[%clk 0:00:06]} 52. Ke3 {[%clk 0:00:15]}  h5 {[%clk 0:00:06]} 53. gxh5 {[%clk 0:00:15]}  gxh5 {[%clk 0:00:07]} 54. f4 {[%clk 0:00:14]}  Kg6 {[%clk 0:00:07]} 55. Kf3 {[%clk 0:00:13]}  Kf5 {[%clk 0:00:07]} 56. Ng3+ {[%clk 0:00:13]}  Kg6 {[%clk 0:00:07]} 57. Ne4 {[%clk 0:00:13]}  Nh6 {[%clk 0:00:06]} 58. Nc5 {[%clk 0:00:11]}  Kf5 {[%clk 0:00:06]} 59. Ne4 {[%clk 0:00:10]}  Ng4 {[%clk 0:00:05]} 60. Ng3+ {[%clk 0:00:10]}  Kg6 {[%clk 0:00:05]} 61. Ne2 {[%clk 0:00:08]}  Kf5 {[%clk 0:00:04]} 62. Ng3+ {[%clk 0:00:07]}  Kg6 {[%clk 0:00:05]} 63. Ke4 {[%clk 0:00:06]}  h4 {[%clk 0:00:03]} 64. Ne2 {[%clk 0:00:06]}  Kf6 {[%clk 0:00:03]} 65. Nd4 {[%clk 0:00:05]}  Nf2+ {[%clk 0:00:02]} 66. Kf3 {[%clk 0:00:05]}  Nd3 {[%clk 0:00:02]} 67. Kg4 {[%clk 0:00:03]}  Kf7 {[%clk 0:00:01]} 68. Kxh4 {[%clk 0:00:03]}  e5 {[%clk 0:00:01]} 69. fxe5 {[%clk 0:00:03]}  Nxe5 {[%clk 0:00:02]} 70. Nf3 {[%clk 0:00:04]}  Ng6+ {[%clk 0:00:03]} 71. Kg4 {[%clk 0:00:04]}  Kg7 {[%clk 0:00:04]} 72. Kf5 {[%clk 0:00:03]}  Ne7+ {[%clk 0:00:05]} 73. Ke6 {[%clk 0:00:03]}  Ng6 {[%clk 0:00:06]} 74. Ng5 {[%clk 0:00:03]}  Nf4+ {[%clk 0:00:05]} 75. Kf5 {[%clk 0:00:03]}  Nxg2 {[%clk 0:00:06]} 1/2-1/2


[Site "https://www.chess.com"]

[Event "Titled Tuesday Blitz January 10 Early 2023"]
[White "Ezat, Mohamed"]
[Black "Dilmukhametov, Artur"]
[WhiteFideId "10600906"]
[BlackFideId "24179922"]
[WhiteElo "2402"]
[BlackElo "2276"]
[Result "1-0"]
[Round "03"]
[TimeControl "180+2"]
[Date "2023.01.10"]
[WhiteClock "0:01:57"]
[BlackClock "0:01:54"]

1. e4 {[%clk 0:03:00]}  e6 {[%clk 0:02:59]} 2. d4 {[%clk 0:03:00]}  d5 {[%clk 0:03:00]} 3. e5 {[%clk 0:02:57]}  c5 {[%clk 0:02:55]} 4. c3 {[%clk 0:02:57]}  Qb6 {[%clk 0:02:53]} 5. Nf3 {[%clk 0:02:53]}  Nc6 {[%clk 0:02:52]} 6. Bd3 {[%clk 0:02:46]}  Bd7 {[%clk 0:02:48]} 7. O-O {[%clk 0:02:44]}  cxd4 {[%clk 0:02:47]} 8. cxd4 {[%clk 0:02:43]}  Nxd4 {[%clk 0:02:39]} 9. Nxd4 {[%clk 0:02:43]}  Qxd4 {[%clk 0:02:39]} 10. Nc3 {[%clk 0:02:44]}  Qxe5 {[%clk 0:02:32]} 11. Re1 {[%clk 0:02:43]}  Qc7 {[%clk 0:02:30]} 12. Nxd5 {[%clk 0:02:42]}  Qc6 {[%clk 0:02:25]} 13. Bb5 {[%clk 0:02:29]}  Qd6 {[%clk 0:02:14]} 14. Bf4 {[%clk 0:02:20]}  e5 {[%clk 0:02:06]} 15. Bxe5 {[%clk 0:02:11]}  Qg6 {[%clk 0:01:56]} 16. Nc7+ {[%clk 0:01:57]}  Ke7 {[%clk 0:01:54]} 17. Qxd7# {[%clk 0:01:57]} 1-0


[Site "https://www.chess.com"]

[Event "Titled Tuesday Blitz January 10 Early 2023"]
[White "Mayank Chakraborty"]
[Black "Ankerst, Mihael"]
[WhiteFideId "25659766"]
[BlackFideId "14602369"]
[WhiteElo "2025"]
[BlackElo "2370"]
[Result "0-1"]
[Round "03"]
[TimeControl "180+2"]
[Date "2023.01.10"]
[WhiteClock "0:01:04"]
[BlackClock "0:00:19"]

1. b3 {[%clk 0:02:59]}  a5 {[%clk 0:02:59]} 2. f4 {[%clk 0:02:58]}  a4 {[%clk 0:02:59]} 3. Nf3 {[%clk 0:02:58]}  e6 {[%clk 0:02:59]} 4. bxa4 {[%clk 0:02:55]}  Nf6 {[%clk 0:02:58]} 5. Nc3 {[%clk 0:02:54]}  Be7 {[%clk 0:02:52]} 6. Bb2 {[%clk 0:02:53]}  O-O {[%clk 0:02:46]} 7. e3 {[%clk 0:02:54]}  d6 {[%clk 0:02:43]} 8. Bd3 {[%clk 0:02:54]}  Nbd7 {[%clk 0:02:43]} 9. O-O {[%clk 0:02:54]}  Nc5 {[%clk 0:02:43]} 10. Be2 {[%clk 0:02:53]}  Bd7 {[%clk 0:02:43]} 11. Bb5 {[%clk 0:02:46]}  Nxa4 {[%clk 0:02:43]} 12. Bxa4 {[%clk 0:02:44]}  Bxa4 {[%clk 0:02:43]} 13. Nxa4 {[%clk 0:02:45]}  Rxa4 {[%clk 0:02:43]} 14. c4 {[%clk 0:02:42]}  Rxc4 {[%clk 0:02:38]} 15. Qb3 {[%clk 0:02:42]}  Rc6 {[%clk 0:02:38]} 16. Bd4 {[%clk 0:02:36]}  Qa8 {[%clk 0:02:33]} 17. a4 {[%clk 0:02:35]}  Rb8 {[%clk 0:02:11]} 18. Ng5 {[%clk 0:02:31]}  h6 {[%clk 0:02:08]} 19. Nxe6 {[%clk 0:02:20]}  fxe6 {[%clk 0:02:08]} 20. Qxe6+ {[%clk 0:02:21]}  Kf8 {[%clk 0:02:07]} 21. Rac1 {[%clk 0:02:15]}  Qxa4 {[%clk 0:01:56]} 22. Ra1 {[%clk 0:02:14]}  Qc4 {[%clk 0:01:55]} 23. Qf5 {[%clk 0:02:14]}  Qd5 {[%clk 0:01:49]} 24. Qg6 {[%clk 0:02:09]}  Qf7 {[%clk 0:01:46]} 25. Qd3 {[%clk 0:02:07]}  d5 {[%clk 0:01:30]} 26. Rfb1 {[%clk 0:02:02]}  Kg8 {[%clk 0:01:28]} 27. Ra7 {[%clk 0:01:59]}  b6 {[%clk 0:01:27]} 28. Be5 {[%clk 0:01:56]}  Bd6 {[%clk 0:01:18]} 29. Bd4 {[%clk 0:01:54]}  Ne4 {[%clk 0:01:14]} 30. Qb5 {[%clk 0:01:52]}  Rc2 {[%clk 0:01:13]} 31. d3 {[%clk 0:01:49]}  Nc5 {[%clk 0:01:07]} 32. Qc6 {[%clk 0:01:42]}  Kh7 {[%clk 0:00:53]} 33. Ra3 {[%clk 0:01:36]}  Qg6 {[%clk 0:00:51]} 34. Qxd5 {[%clk 0:01:35]}  Nxd3 {[%clk 0:00:38]} 35. Rab3 {[%clk 0:01:26]}  Nf2 {[%clk 0:00:32]} 36. Qf3 {[%clk 0:01:21]}  Ne4 {[%clk 0:00:29]} 37. f5 {[%clk 0:01:18]}  Qe8 {[%clk 0:00:29]} 38. Qg4 {[%clk 0:01:16]}  Nf6 {[%clk 0:00:25]} 39. Qd1 {[%clk 0:01:15]}  Qe4 {[%clk 0:00:25]} 40. Qf1 {[%clk 0:01:13]}  Ng4 {[%clk 0:00:24]} 41. h3 {[%clk 0:01:12]}  Nf6 {[%clk 0:00:22]} 42. Rd1 {[%clk 0:01:07]}  Ra8 {[%clk 0:00:21]} 43. Bxf6 {[%clk 0:01:03]}  gxf6 {[%clk 0:00:21]} 44. Rd4 {[%clk 0:01:04]}  Qe5 {[%clk 0:00:19]} 0-1


[Site "https://www.chess.com"]

[Event "Titled Tuesday Blitz January 10 Early 2023"]
[White "Lehtosaari, Mauri"]
[Black "Broca Jimenez, Fernando"]
[WhiteFideId "501999"]
[BlackFideId "5104742"]
[WhiteElo "2176"]
[BlackElo "2075"]
[Result "1-0"]
[Round "03"]
[TimeControl "180+2"]
[Date "2023.01.10"]
[WhiteClock "0:00:19"]
[BlackClock "0:00:12"]

1. d4 {[%clk 0:03:00]}  Nf6 {[%clk 0:02:58]} 2. Nf3 {[%clk 0:03:01]}  d6 {[%clk 0:02:52]} 3. g3 {[%clk 0:02:59]}  g6 {[%clk 0:02:51]} 4. Bg2 {[%clk 0:02:51]}  Bg7 {[%clk 0:02:51]} 5. O-O {[%clk 0:02:52]}  O-O {[%clk 0:02:52]} 6. c4 {[%clk 0:02:51]}  Nbd7 {[%clk 0:02:53]} 7. Nc3 {[%clk 0:02:50]}  e5 {[%clk 0:02:53]} 8. Bg5 {[%clk 0:02:46]}  h6 {[%clk 0:02:47]} 9. Bxf6 {[%clk 0:02:45]}  Bxf6 {[%clk 0:02:46]} 10. e3 {[%clk 0:02:27]}  c6 {[%clk 0:02:45]} 11. b4 {[%clk 0:02:23]}  Re8 {[%clk 0:02:36]} 12. Rc1 {[%clk 0:02:14]}  Qc7 {[%clk 0:02:21]} 13. a3 {[%clk 0:01:49]}  Bg7 {[%clk 0:01:23]} 14. Qd2 {[%clk 0:01:13]}  Nf6 {[%clk 0:01:02]} 15. Rfd1 {[%clk 0:01:11]}  Be6 {[%clk 0:00:34]} 16. d5 {[%clk 0:00:54]}  Bg4 {[%clk 0:00:28]} 17. dxc6 {[%clk 0:00:31]}  bxc6 {[%clk 0:00:19]} 18. h3 {[%clk 0:00:30]}  Bxf3 {[%clk 0:00:18]} 19. Bxf3 {[%clk 0:00:31]}  Rad8 {[%clk 0:00:18]} 20. b5 {[%clk 0:00:26]}  Qb6 {[%clk 0:00:16]} 21. Bxc6 {[%clk 0:00:22]}  Re7 {[%clk 0:00:16]} 22. Nd5 {[%clk 0:00:22]}  Nxd5 {[%clk 0:00:15]} 23. Bxd5 {[%clk 0:00:23]}  Bf8 {[%clk 0:00:14]} 24. a4 {[%clk 0:00:23]}  Rc7 {[%clk 0:00:14]} 25. a5 {[%clk 0:00:23]}  Qb8 {[%clk 0:00:14]} 26. Qd3 {[%clk 0:00:23]}  Rdc8 {[%clk 0:00:14]} 27. Qxg6+ {[%clk 0:00:24]}  Bg7 {[%clk 0:00:13]} 28. Qf5 {[%clk 0:00:22]}  Kh8 {[%clk 0:00:11]} 29. h4 {[%clk 0:00:20]}  Rf8 {[%clk 0:00:12]} 30. Be4 {[%clk 0:00:20]}  Qd8 {[%clk 0:00:12]} 31. Qh7# {[%clk 0:00:19]} 1-0


[Site "https://www.chess.com"]

[Event "Titled Tuesday Blitz January 10 Early 2023"]
[White "Kamalidenova, Meruert"]
[Black "Pak, Yevgeniy"]
[WhiteFideId "13712802"]
[BlackFideId "14201712"]
[WhiteElo "2350"]
[BlackElo "2384"]
[Result "1-0"]
[Round "03"]
[TimeControl "180+2"]
[Date "2023.01.10"]
[WhiteClock "0:00:24"]
[BlackClock "0:00:03"]

1. c4 {[%clk 0:02:57]}  g6 {[%clk 0:02:50]} 2. Nc3 {[%clk 0:02:55]}  Bg7 {[%clk 0:02:49]} 3. Nf3 {[%clk 0:02:55]}  Nf6 {[%clk 0:02:42]} 4. h4 {[%clk 0:02:55]}  d6 {[%clk 0:02:42]} 5. d4 {[%clk 0:02:47]}  Nbd7 {[%clk 0:02:30]} 6. e4 {[%clk 0:02:43]}  c5 {[%clk 0:02:18]} 7. Be2 {[%clk 0:02:42]}  cxd4 {[%clk 0:02:06]} 8. Nxd4 {[%clk 0:02:41]}  a6 {[%clk 0:02:04]} 9. h5 {[%clk 0:02:41]}  O-O {[%clk 0:01:43]} 10. Be3 {[%clk 0:02:30]}  Ne5 {[%clk 0:01:39]} 11. f3 {[%clk 0:02:27]}  Be6 {[%clk 0:01:31]} 12. Nd5 {[%clk 0:02:25]}  Bxd5 {[%clk 0:01:26]} 13. cxd5 {[%clk 0:02:23]}  Qa5+ {[%clk 0:01:18]} 14. Kf2 {[%clk 0:02:19]}  Rfc8 {[%clk 0:01:15]} 15. hxg6 {[%clk 0:02:17]}  hxg6 {[%clk 0:01:12]} 16. Qg1 {[%clk 0:02:09]}  Qb4 {[%clk 0:00:33]} 17. Rd1 {[%clk 0:01:59]}  Qxb2 {[%clk 0:00:28]} 18. Rd2 {[%clk 0:01:59]}  Qc3 {[%clk 0:00:25]} 19. Rh4 {[%clk 0:01:27]}  g5 {[%clk 0:00:15]} 20. Bxg5 {[%clk 0:00:53]}  Ng6 {[%clk 0:00:15]} 21. Qh2 {[%clk 0:00:39]}  Nxh4 {[%clk 0:00:14]} 22. Qxh4 {[%clk 0:00:40]}  Nh7 {[%clk 0:00:09]} 23. Be3 {[%clk 0:00:35]}  Qa1 {[%clk 0:00:04]} 24. Nf5 {[%clk 0:00:32]}  Rc1 {[%clk 0:00:03]} 25. Nxe7+ {[%clk 0:00:24]} 1-0


[Site "https://www.chess.com"]

[Event "Titled Tuesday Blitz January 10 Early 2023"]
[White "Blokhin, Sofia"]
[Black "Vagman, Roy"]
[WhiteFideId "4508190"]
[BlackFideId "2828995"]
[WhiteElo "2062"]
[BlackElo "2273"]
[Result "0-1"]
[Round "03"]
[TimeControl "180+2"]
[Date "2023.01.10"]
[WhiteClock "0:00:21"]
[BlackClock "0:02:33"]

1. d4 {[%clk 0:03:00]}  g6 {[%clk 0:02:57]} 2. c4 {[%clk 0:03:00]}  Bg7 {[%clk 0:02:58]} 3. Nc3 {[%clk 0:03:00]}  d6 {[%clk 0:02:53]} 4. e4 {[%clk 0:02:58]}  Nc6 {[%clk 0:02:52]} 5. Be3 {[%clk 0:02:56]}  e5 {[%clk 0:02:50]} 6. d5 {[%clk 0:02:55]}  Nd4 {[%clk 0:02:50]} 7. f3 {[%clk 0:02:52]}  f5 {[%clk 0:02:50]} 8. Bd3 {[%clk 0:02:45]}  Nf6 {[%clk 0:02:43]} 9. Nge2 {[%clk 0:02:30]}  fxe4 {[%clk 0:02:38]} 10. fxe4 {[%clk 0:02:17]}  Ng4 {[%clk 0:02:37]} 11. Bd2 {[%clk 0:02:00]}  Qh4+ {[%clk 0:02:35]} 12. Ng3 {[%clk 0:01:47]}  Nxh2 {[%clk 0:02:35]} 13. Be3 {[%clk 0:01:06]}  Qxg3+ {[%clk 0:02:35]} 14. Bf2 {[%clk 0:01:06]}  Qxg2 {[%clk 0:02:35]} 15. Rxh2 {[%clk 0:00:37]}  Qxh2 {[%clk 0:02:34]} 16. Bxd4 {[%clk 0:00:29]}  exd4 {[%clk 0:02:33]} 17. Ne2 {[%clk 0:00:29]}  Bh6 {[%clk 0:02:33]} 18. Qa4+ {[%clk 0:00:24]}  Bd7 {[%clk 0:02:33]} 19. Qb4 {[%clk 0:00:21]}  Qh1+ {[%clk 0:02:33]} 0-1


[Site "https://www.chess.com"]

[Event "Titled Tuesday Blitz January 10 Early 2023"]
[White "Ladan, Nicholas"]
[Black "Slovineanu, Viacheslav"]
[WhiteFideId "30918855"]
[BlackFideId "13900510"]
[WhiteElo "2228"]
[BlackElo "2412"]
[Result "1-0"]
[Round "03"]
[TimeControl "180+2"]
[Date "2023.01.10"]
[WhiteClock "0:02:14"]
[BlackClock "0:00:51"]

1. b4 {[%clk 0:03:00]}  d5 {[%clk 0:02:56]} 2. Bb2 {[%clk 0:03:00]}  Qd6 {[%clk 0:02:56]} 3. a3 {[%clk 0:03:00]}  e5 {[%clk 0:02:54]} 4. e3 {[%clk 0:02:55]}  Nd7 {[%clk 0:02:54]} 5. Nf3 {[%clk 0:02:54]}  c6 {[%clk 0:02:41]} 6. c4 {[%clk 0:02:54]}  Be7 {[%clk 0:02:25]} 7. Nc3 {[%clk 0:02:45]}  Bf6 {[%clk 0:02:19]} 8. cxd5 {[%clk 0:02:38]}  cxd5 {[%clk 0:02:09]} 9. Nb5 {[%clk 0:02:38]}  Qb8 {[%clk 0:02:09]} 10. Rc1 {[%clk 0:02:34]}  Bd8 {[%clk 0:01:54]} 11. Rxc8 {[%clk 0:02:33]}  Qxc8 {[%clk 0:01:46]} 12. Nd6+ {[%clk 0:02:33]}  Kf8 {[%clk 0:01:47]} 13. Nxc8 {[%clk 0:02:34]}  Rxc8 {[%clk 0:01:47]} 14. Nxe5 {[%clk 0:02:34]}  Nxe5 {[%clk 0:01:46]} 15. Bxe5 {[%clk 0:02:35]}  Nf6 {[%clk 0:01:35]} 16. Bd3 {[%clk 0:02:29]}  g6 {[%clk 0:01:35]} 17. O-O {[%clk 0:02:28]}  Kg7 {[%clk 0:01:35]} 18. Qf3 {[%clk 0:02:28]}  Re8 {[%clk 0:01:32]} 19. Bd4 {[%clk 0:02:22]}  Re6 {[%clk 0:01:14]} 20. g4 {[%clk 0:02:20]}  Bb6 {[%clk 0:01:07]} 21. Bc3 {[%clk 0:02:15]}  h6 {[%clk 0:00:59]} 22. h4 {[%clk 0:02:15]}  d4 {[%clk 0:00:58]} 23. exd4 {[%clk 0:02:14]}  Kh7 {[%clk 0:00:51]} 24. d5 {[%clk 0:02:14]} 1-0


[Site "https://www.chess.com"]